Workbook

Sheet RAUPEX Permeation Argon
D3: RAUPEX INDUSTRIEROHRSYSTEM - ARGON PERMEATION
D4: Modell-Annahme und -Näherungsberechnung Fa Mecadi GmbH
B10: Konstanter Argon-Innendruck | G10: Initiale, einmalige Argon-Befüllung
B11: über den Berechnungszeitraum | G11: über den Berechnungszeitraum
H12: =H13 -> 63 x 5,8
B13: RAUPEX-Rohr | C13: 20 x 1,9 | D13: [mm] | G13: RAUPEX-Rohr | H13: 63 x 5,8 | I13: [mm]
B14: Rohrlänge sichtbar | C14: 1 | D14: [m] | G14: Rohrlänge sichtbar | H14: 10 | I14: [m]
B15: Temperatur * | C15: 20 | D15: [°C] | G15: Temperatur * | H15: 20 | I15: [°C]
B16: Fülldruck konstant * | C16: 6 | D16: [bar] | G16: Fülldruck einmalig * | H16: 6 | I16: [bar]
B17: Zeit | C17: 1 | D17: [Tage] | G17: Zeit | H17: 1 | I17: [Tage]
B18: Permeation Argon | C18: =VLOOKUP(C13,'Rohr-Datenbank'!D:N,11,FALSE) -> 0.01 | D18: [Liter] | G18: Fülldruck verbleibend | H18: ='Modell-Rechnung'!F104 -> 5.99 | I18: [bar]
B32: Hauptbestandteile trockener Luft auf Meereshöhe:
C34: Volumenanteile
C35: [%] | D35: [Liter/m3]
B36: Stickstoff | C36: 78.08 | D36: =C36/100*1000 -> 780.8
B37: Sauerstoff | C37: 20.94 | D37: =C37/100*1000 -> 209.4
B38: Argon | C38: 0.93 | D38: 9.3
B39: Rest | C39: =100-(C36+C37+C38) -> 0.05 | D39: 0.5
N40: Version 1.0
N41: Druckdatum: | O41: =TODAY() -> 2021-05-27

Sheet max Druck-Temperatur-Belastung

Sheet Nutzungsbedingungen

Sheet Rohr-Datenbank (hidden)
A2: ='RAUPEX Permeation Argon'!C15 -> 20 | B2: Temperatur / °C
A3: ='RAUPEX Permeation Argon'!C14 -> 1 | B3: sichtbare Rohrlänge / m
A4: ='RAUPEX Permeation Argon'!C16 -> 6 | B4: Fülldruck (Ar) / bar
A5: ='RAUPEX Permeation Argon'!C17 -> 1 | B5: Zeit / Tag
D6: Rohr-ID | E6: Rohrabmessung Außendurchmesser / mm | F6: Rohrabmessung Wandstärke / mm | G6: Innendurchmesser / mm | H6: Innenumfang / m | I6: Innenfläche / m2 | J6: Innenvolumen / cm3 | L6: P(Ar) / cm3 Tag-1 | M6: ="P(Ar) / cm3 (" &A5 &" Tag/e)-1" -> P(Ar) / cm3 (1 Tag/e)-1 | N6: ="P(Ar) / L (" &A5 &" Tag/e)-1" -> P(Ar) / L (1 Tag/e)-1
D7: =E7&" x "&F7 -> 20 x 1,9 | E7: 20 | F7: 1.9 | G7: =E7-F7-F7 -> 16.2 | H7: =((G7)*PI())/1000 -> 0.051 | I7: =H7*$A$3 -> 5.1E-02 | J7: =PI()* ((G7/10/2)^2)* ($A$3*100) -> 206 | L7: =(EXP('Experimentelle Daten'!$Z$3/8.31446/($A$2+273.15)+'Experimentelle Daten'!$AA$3))/F7*I7*$A$4*(60*60*24) -> 10.4 | M7: =L7*$A$5 -> 10 | N7: =M7/1000 -> 0.0104094
D8: =E8&" x "&F8 -> 25 x 2,3 | E8: 25 | F8: 2.3 | G8: =E8-F8-F8 -> 20.4 | H8: =((G8)*PI())/1000 -> 0.064 | I8: 6.4E-02 | J8: =PI()* ((G8/10/2)^2)* ($A$3*100) -> 327 | L8: =(EXP('Experimentelle Daten'!$Z$3/8.31446/($A$2+273.15)+'Experimentelle Daten'!$AA$3))/F8*I8*$A$4*(60*60*24) -> 10.8 | M8: 11 | N8: =M8/1000 -> 0.0108284
D9: 32 x 2,9 | E9: 32 | F9: 2.9 | G9: =E9-F9-F9 -> 26.2 | H9: 0.082 | I9: 8.2E-02 | J9: 539 | L9: =(EXP('Experimentelle Daten'!$Z$3/8.31446/($A$2+273.15)+'Experimentelle Daten'!$AA$3))/F9*I9*$A$4*(60*60*24) -> 11.0 | M9: 11 | N9: 0.0110298
D10: 40 x 3,7 | E10: 40 | F10: 3.7 | G10: 32.6 | H10: 0.102 | I10: 1.0E-01 | J10: 835 | L10: =(EXP('Experimentelle Daten'!$Z$3/8.31446/($A$2+273.15)+'Experimentelle Daten'!$AA$3))/F10*I10*$A$4*(60*60*24) -> 10.8 | M10: 11 | N10: 0.0107567
D11: 50 x 4,6 | E11: 50 | F11: 4.6 | G11: 40.8 | H11: 0.128 | I11: 1.3E-01 | J11: 1307 | L11: =(EXP('Experimentelle Daten'!$Z$3/8.31446/($A$2+273.15)+'Experimentelle Daten'!$AA$3))/F11*I11*$A$4*(60*60*24) -> 10.8 | M11: 11 | N11: 0.0108284
D12: 63 x 5,8 | E12: 63 | F12: 5.8 | G12: 51.4 | H12: 0.161 | I12: 1.6E-01 | J12: 2075 | L12: =(EXP('Experimentelle Daten'!$Z$3/8.31446/($A$2+273.15)+'Experimentelle Daten'!$AA$3))/F12*I12*$A$4*(60*60*24) -> 10.8 | M12: 11 | N12: 0.0108193
D13: 75 x 6,8 | E13: 75 | F13: 6.8 | G13: 61.4 | H13: 0.193 | I13: 1.9E-01 | J13: 2961 | L13: =(EXP('Experimentelle Daten'!$Z$3/8.31446/($A$2+273.15)+'Experimentelle Daten'!$AA$3))/F13*I13*$A$4*(60*60*24) -> 11.0 | M13: 11 | N13: 0.0110236
D14: 90 x 8,2 | E14: 90 | F14: 8.2 | G14: 73.6 | H14: 0.231 | I14: 2.3E-01 | J14: 4254 | L14: =(EXP('Experimentelle Daten'!$Z$3/8.31446/($A$2+273.15)+'Experimentelle Daten'!$AA$3))/F14*I14*$A$4*(60*60*24) -> 11.0 | M14: 11 | N14: 0.0109579
D15: 110 x 10 | E15: 110 | F15: 10 | G15: 90 | H15: 0.283 | I15: 2.8E-01 | J15: 6362 | L15: =(EXP('Experimentelle Daten'!$Z$3/8.31446/($A$2+273.15)+'Experimentelle Daten'!$AA$3))/F15*I15*$A$4*(60*60*24) -> 11.0 | M15: 11 | N15: 0.0109877
D16: 125 x 11,4 | E16: 125 | F16: 11.4 | G16: 102.2 | H16: 0.321 | I16: 3.2E-01 | J16: 8203 | L16: =(EXP('Experimentelle Daten'!$Z$3/8.31446/($A$2+273.15)+'Experimentelle Daten'!$AA$3))/F16*I16*$A$4*(60*60*24) -> 10.9 | M16: 11 | N16: 0.0109448
D17: 140 x 12,7 | E17: 140 | F17: 12.7 | G17: 114.6 | H17: 0.360 | I17: 3.6E-01 | J17: 10315 | L17: =(EXP('Experimentelle Daten'!$Z$3/8.31446/($A$2+273.15)+'Experimentelle Daten'!$AA$3))/F17*I17*$A$4*(60*60*24) -> 11.0 | M17: 11 | N17: 0.0110165
D18: 160 x 14,6 | E18: 160 | F18: 14.6 | G18: 130.8 | H18: 0.411 | I18: 4.1E-01 | J18: 13437 | L18: =(EXP('Experimentelle Daten'!$Z$3/8.31446/($A$2+273.15)+'Experimentelle Daten'!$AA$3))/F18*I18*$A$4*(60*60*24) -> 10.9 | M18: 11 | N18: 0.0109375
D19: 20 x 2,8 | E19: 20 | F19: 2.8 | G19: 14.4 | H19: 0.045 | I19: 4.5E-02 | J19: 163 | L19: =(EXP('Experimentelle Daten'!$Z$3/8.31446/($A$2+273.15)+'Experimentelle Daten'!$AA$3))/F19*I19*$A$4*(60*60*24) -> 6.3 | M19: 6 | N19: 0.0062787
D20: 25 x 3,5 | E20: 25 | F20: 3.5 | G20: 18 | H20: 0.057 | I20: 5.7E-02 | J20: 254 | L20: =(EXP('Experimentelle Daten'!$Z$3/8.31446/($A$2+273.15)+'Experimentelle Daten'!$AA$3))/F20*I20*$A$4*(60*60*24) -> 6.3 | M20: 6 | N20: 0.0062787
D21: 32 x 4,4 | E21: 32 | F21: 4.4 | G21: 23.2 | H21: 0.073 | I21: 7.3E-02 | J21: 423 | L21: =(EXP('Experimentelle Daten'!$Z$3/8.31446/($A$2+273.15)+'Experimentelle Daten'!$AA$3))/F21*I21*$A$4*(60*60*24) -> 6.4 | M21: 6 | N21: 0.0064372
D22: 40 x 5,5 | E22: 40 | F22: 5.5 | G22: 29 | H22: 0.091 | I22: 9.1E-02 | J22: 661 | L22: =(EXP('Experimentelle Daten'!$Z$3/8.31446/($A$2+273.15)+'Experimentelle Daten'!$AA$3))/F22*I22*$A$4*(60*60*24) -> 6.4 | M22: 6 | N22: 0.0064372
D23: 50 x 6,9 | E23: 50 | F23: 6.9 | G23: 36.2 | H23: 0.114 | I23: 1.1E-01 | J23: 1029 | L23: =(EXP('Experimentelle Daten'!$Z$3/8.31446/($A$2+273.15)+'Experimentelle Daten'!$AA$3))/F23*I23*$A$4*(60*60*24) -> 6.4 | M23: 6 | N23: 0.0064051
D24: 63 x 8,6 | E24: 63 | F24: 8.6 | G24: 45.8 | H24: 0.144 | I24: 1.4E-01 | J24: 1647 | L24: =(EXP('Experimentelle Daten'!$Z$3/8.31446/($A$2+273.15)+'Experimentelle Daten'!$AA$3))/F24*I24*$A$4*(60*60*24) -> 6.5 | M24: 7 | N24: 0.0065018

Sheet Modell-Rechnung (hidden)
A3: ='RAUPEX Permeation Argon'!H15 -> 20 | B3: Temperatur / °C | D3: Schritt | E3: Zeit / Tag | F3: p(Ar) / bar | G3: P(Ar) / cm3 Tag-1 | H3: ∆V / cm3
A4: ='RAUPEX Permeation Argon'!H12 -> 63 x 5,8 | B4: Rohr-ID / mm | D4: 0 | E4: =$A$7/100*D4 -> 0.0 | F4: =A6 -> 6.0 | G4: =(EXP('Experimentelle Daten'!$Z$3/8.31446/($A$3+273.15)+'Experimentelle Daten'!$AA$3))/$A$9*$A$10*F4*(60*60*24) -> 108.193 | H4: =G4*($E$5) -> 1.1
A5: ='RAUPEX Permeation Argon'!H14 -> 10 | B5: sichtbare Rohrlänge / m | D5: 1 | E5: 0.0 | F5: =F4-(H4/$A$11) -> 6.0 | G5: =(EXP('Experimentelle Daten'!$Z$3/8.31446/($A$3+273.15)+'Experimentelle Daten'!$AA$3))/$A$9*$A$10*F5*(60*60*24) -> 108.192 | H5: =G5*($E$5) -> 1.1
A6: ='RAUPEX Permeation Argon'!H16 -> 6 | B6: Fülldruck (Ar) / bar | D6: 2 | E6: 0.0 | F6: 6.0 | G6: =(EXP('Experimentelle Daten'!$Z$3/8.31446/($A$3+273.15)+'Experimentelle Daten'!$AA$3))/$A$9*$A$10*F6*(60*60*24) -> 108.191 | H6: 1.1
A7: ='RAUPEX Permeation Argon'!H17 -> 1 | B7: Zeit / Tag | D7: 3 | E7: 0.0 | F7: 6.0 | G7: =(EXP('Experimentelle Daten'!$Z$3/8.31446/($A$3+273.15)+'Experimentelle Daten'!$AA$3))/$A$9*$A$10*F7*(60*60*24) -> 108.190 | H7: 1.1
D8: 4 | E8: 0.0 | F8: 6.0 | G8: =(EXP('Experimentelle Daten'!$Z$3/8.31446/($A$3+273.15)+'Experimentelle Daten'!$AA$3))/$A$9*$A$10*F8*(60*60*24) -> 108.189 | H8: 1.1
A9: =VLOOKUP(A4,'Rohr-Datenbank'!D7:J24,3,FALSE) -> 5.8 | B9: Wandstärke / mm | D9: 5 | E9: 0.1 | F9: 6.0 | G9: =(EXP('Experimentelle Daten'!$Z$3/8.31446/($A$3+273.15)+'Experimentelle Daten'!$AA$3))/$A$9*$A$10*F9*(60*60*24) -> 108.188 | H9: 1.1
A10: =VLOOKUP(A4,'Rohr-Datenbank'!$D$7:$J$24,5,FALSE)*A5 -> 1.6E+00 | B10: Innenfläche / m2 | D10: 6 | E10: 0.1 | F10: 6.0 | G10: =(EXP('Experimentelle Daten'!$Z$3/8.31446/($A$3+273.15)+'Experimentelle Daten'!$AA$3))/$A$9*$A$10*F10*(60*60*24) -> 108.187 | H10: 1.1
A11: =PI()* ((VLOOKUP(A4,'Rohr-Datenbank'!$D$7:$J$24,4,FALSE)/10/2)^2)* (A5*100) -> 20750 | B11: Innenvolumen / cm3 | D11: 7 | E11: 0.1 | F11: 6.0 | G11: =(EXP('Experimentelle Daten'!$Z$3/8.31446/($A$3+273.15)+'Experimentelle Daten'!$AA$3))/$A$9*$A$10*F11*(60*60*24) -> 108.186 | H11: 1.1
A12: PE-XA | B12: Material-Kennung | D12: 8 | E12: 0.1 | F12: 6.0 | G12: =(EXP('Experimentelle Daten'!$Z$3/8.31446/($A$3+273.15)+'Experimentelle Daten'!$AA$3))/$A$9*$A$10*F12*(60*60*24) -> 108.185 | H12: 1.1
D13: 9 | E13: 0.1 | F13: 6.0 | G13: =(EXP('Experimentelle Daten'!$Z$3/8.31446/($A$3+273.15)+'Experimentelle Daten'!$AA$3))/$A$9*$A$10*F13*(60*60*24) -> 108.184 | H13: 1.1
A14: Rohr-Datenbank | D14: 10 | E14: 0.1 | F14: 6.0 | G14: =(EXP('Experimentelle Daten'!$Z$3/8.31446/($A$3+273.15)+'Experimentelle Daten'!$AA$3))/$A$9*$A$10*F14*(60*60*24) -> 108.183 | H14: 1.1
D15: 11 | E15: 0.1 | F15: 6.0 | G15: =(EXP('Experimentelle Daten'!$Z$3/8.31446/($A$3+273.15)+'Experimentelle Daten'!$AA$3))/$A$9*$A$10*F15*(60*60*24) -> 108.182 | H15: 1.1
D16: 12 | E16: 0.1 | F16: 6.0 | G16: =(EXP('Experimentelle Daten'!$Z$3/8.31446/($A$3+273.15)+'Experimentelle Daten'!$AA$3))/$A$9*$A$10*F16*(60*60*24) -> 108.182 | H16: 1.1
D17: 13 | E17: 0.1 | F17: 6.0 | G17: =(EXP('Experimentelle Daten'!$Z$3/8.31446/($A$3+273.15)+'Experimentelle Daten'!$AA$3))/$A$9*$A$10*F17*(60*60*24) -> 108.181 | H17: 1.1
D18: 14 | E18: 0.1 | F18: 6.0 | G18: =(EXP('Experimentelle Daten'!$Z$3/8.31446/($A$3+273.15)+'Experimentelle Daten'!$AA$3))/$A$9*$A$10*F18*(60*60*24) -> 108.180 | H18: 1.1
D19: 15 | E19: 0.2 | F19: 6.0 | G19: =(EXP('Experimentelle Daten'!$Z$3/8.31446/($A$3+273.15)+'Experimentelle Daten'!$AA$3))/$A$9*$A$10*F19*(60*60*24) -> 108.179 | H19: 1.1
D20: 16 | E20: 0.2 | F20: 6.0 | G20: =(EXP('Experimentelle Daten'!$Z$3/8.31446/($A$3+273.15)+'Experimentelle Daten'!$AA$3))/$A$9*$A$10*F20*(60*60*24) -> 108.178 | H20: 1.1
D21: 17 | E21: 0.2 | F21: 6.0 | G21: =(EXP('Experimentelle Daten'!$Z$3/8.31446/($A$3+273.15)+'Experimentelle Daten'!$AA$3))/$A$9*$A$10*F21*(60*60*24) -> 108.177 | H21: 1.1
D22: 18 | E22: 0.2 | F22: 6.0 | G22: =(EXP('Experimentelle Daten'!$Z$3/8.31446/($A$3+273.15)+'Experimentelle Daten'!$AA$3))/$A$9*$A$10*F22*(60*60*24) -> 108.176 | H22: 1.1
D23: 19 | E23: 0.2 | F23: 6.0 | G23: =(EXP('Experimentelle Daten'!$Z$3/8.31446/($A$3+273.15)+'Experimentelle Daten'!$AA$3))/$A$9*$A$10*F23*(60*60*24) -> 108.175 | H23: 1.1
D24: 20 | E24: 0.2 | F24: 6.0 | G24: =(EXP('Experimentelle Daten'!$Z$3/8.31446/($A$3+273.15)+'Experimentelle Daten'!$AA$3))/$A$9*$A$10*F24*(60*60*24) -> 108.174 | H24: 1.1
D25: 21 | E25: 0.2 | F25: 6.0 | G25: =(EXP('Experimentelle Daten'!$Z$3/8.31446/($A$3+273.15)+'Experimentelle Daten'!$AA$3))/$A$9*$A$10*F25*(60*60*24) -> 108.173 | H25: 1.1
D26: 22 | E26: 0.2 | F26: 6.0 | G26: =(EXP('Experimentelle Daten'!$Z$3/8.31446/($A$3+273.15)+'Experimentelle Daten'!$AA$3))/$A$9*$A$10*F26*(60*60*24) -> 108.172 | H26: 1.1
D27: 23 | E27: 0.2 | F27: 6.0 | G27: =(EXP('Experimentelle Daten'!$Z$3/8.31446/($A$3+273.15)+'Experimentelle Daten'!$AA$3))/$A$9*$A$10*F27*(60*60*24) -> 108.171 | H27: 1.1
D28: 24 | E28: 0.2 | F28: 6.0 | G28: =(EXP('Experimentelle Daten'!$Z$3/8.31446/($A$3+273.15)+'Experimentelle Daten'!$AA$3))/$A$9*$A$10*F28*(60*60*24) -> 108.170 | H28: 1.1
D29: 25 | E29: 0.3 | F29: 6.0 | G29: =(EXP('Experimentelle Daten'!$Z$3/8.31446/($A$3+273.15)+'Experimentelle Daten'!$AA$3))/$A$9*$A$10*F29*(60*60*24) -> 108.169 | H29: 1.1
D30: 26 | E30: 0.3 | F30: 6.0 | G30: =(EXP('Experimentelle Daten'!$Z$3/8.31446/($A$3+273.15)+'Experimentelle Daten'!$AA$3))/$A$9*$A$10*F30*(60*60*24) -> 108.168 | H30: 1.1
D31: 27 | E31: 0.3 | F31: 6.0 | G31: =(EXP('Experimentelle Daten'!$Z$3/8.31446/($A$3+273.15)+'Experimentelle Daten'!$AA$3))/$A$9*$A$10*F31*(60*60*24) -> 108.167 | H31: 1.1
D32: 28 | E32: 0.3 | F32: 6.0 | G32: =(EXP('Experimentelle Daten'!$Z$3/8.31446/($A$3+273.15)+'Experimentelle Daten'!$AA$3))/$A$9*$A$10*F32*(60*60*24) -> 108.166 | H32: 1.1
D33: 29 | E33: 0.3 | F33: 6.0 | G33: =(EXP('Experimentelle Daten'!$Z$3/8.31446/($A$3+273.15)+'Experimentelle Daten'!$AA$3))/$A$9*$A$10*F33*(60*60*24) -> 108.166 | H33: 1.1
D34: 30 | E34: 0.3 | F34: 6.0 | G34: =(EXP('Experimentelle Daten'!$Z$3/8.31446/($A$3+273.15)+'Experimentelle Daten'!$AA$3))/$A$9*$A$10*F34*(60*60*24) -> 108.165 | H34: 1.1
D35: 31 | E35: 0.3 | F35: 6.0 | G35: =(EXP('Experimentelle Daten'!$Z$3/8.31446/($A$3+273.15)+'Experimentelle Daten'!$AA$3))/$A$9*$A$10*F35*(60*60*24) -> 108.164 | H35: 1.1
D36: 32 | E36: =$A$7/100*D36 -> 0.3 | F36: 6.0 | G36: =(EXP('Experimentelle Daten'!$Z$3/8.31446/($A$3+273.15)+'Experimentelle Daten'!$AA$3))/$A$9*$A$10*F36*(60*60*24) -> 108.163 | H36: =G36*($E$5) -> 1.1
D37: 33 | E37: 0.3 | F37: =F36-(H36/$A$11) -> 6.0 | G37: =(EXP('Experimentelle Daten'!$Z$3/8.31446/($A$3+273.15)+'Experimentelle Daten'!$AA$3))/$A$9*$A$10*F37*(60*60*24) -> 108.162 | H37: 1.1
D38: 34 | E38: 0.3 | F38: 6.0 | G38: =(EXP('Experimentelle Daten'!$Z$3/8.31446/($A$3+273.15)+'Experimentelle Daten'!$AA$3))/$A$9*$A$10*F38*(60*60*24) -> 108.161 | H38: 1.1
D39: 35 | E39: 0.4 | F39: 6.0 | G39: =(EXP('Experimentelle Daten'!$Z$3/8.31446/($A$3+273.15)+'Experimentelle Daten'!$AA$3))/$A$9*$A$10*F39*(60*60*24) -> 108.160 | H39: 1.1
D40: 36 | E40: 0.4 | F40: 6.0 | G40: =(EXP('Experimentelle Daten'!$Z$3/8.31446/($A$3+273.15)+'Experimentelle Daten'!$AA$3))/$A$9*$A$10*F40*(60*60*24) -> 108.159 | H40: 1.1
D41: 37 | E41: 0.4 | F41: 6.0 | G41: =(EXP('Experimentelle Daten'!$Z$3/8.31446/($A$3+273.15)+'Experimentelle Daten'!$AA$3))/$A$9*$A$10*F41*(60*60*24) -> 108.158 | H41: 1.1
D42: 38 | E42: 0.4 | F42: 6.0 | G42: =(EXP('Experimentelle Daten'!$Z$3/8.31446/($A$3+273.15)+'Experimentelle Daten'!$AA$3))/$A$9*$A$10*F42*(60*60*24) -> 108.157 | H42: 1.1
D43: 39 | E43: 0.4 | F43: 6.0 | G43: =(EXP('Experimentelle Daten'!$Z$3/8.31446/($A$3+273.15)+'Experimentelle Daten'!$AA$3))/$A$9*$A$10*F43*(60*60*24) -> 108.156 | H43: 1.1
D44: 40 | E44: 0.4 | F44: 6.0 | G44: =(EXP('Experimentelle Daten'!$Z$3/8.31446/($A$3+273.15)+'Experimentelle Daten'!$AA$3))/$A$9*$A$10*F44*(60*60*24) -> 108.155 | H44: 1.1
D45: 41 | E45: 0.4 | F45: 6.0 | G45: =(EXP('Experimentelle Daten'!$Z$3/8.31446/($A$3+273.15)+'Experimentelle Daten'!$AA$3))/$A$9*$A$10*F45*(60*60*24) -> 108.154 | H45: 1.1
D46: 42 | E46: 0.4 | F46: 6.0 | G46: =(EXP('Experimentelle Daten'!$Z$3/8.31446/($A$3+273.15)+'Experimentelle Daten'!$AA$3))/$A$9*$A$10*F46*(60*60*24) -> 108.153 | H46: 1.1
D47: 43 | E47: 0.4 | F47: 6.0 | G47: =(EXP('Experimentelle Daten'!$Z$3/8.31446/($A$3+273.15)+'Experimentelle Daten'!$AA$3))/$A$9*$A$10*F47*(60*60*24) -> 108.152 | H47: 1.1
D48: 44 | E48: 0.4 | F48: 6.0 | G48: =(EXP('Experimentelle Daten'!$Z$3/8.31446/($A$3+273.15)+'Experimentelle Daten'!$AA$3))/$A$9*$A$10*F48*(60*60*24) -> 108.151 | H48: 1.1
D49: 45 | E49: 0.5 | F49: 6.0 | G49: =(EXP('Experimentelle Daten'!$Z$3/8.31446/($A$3+273.15)+'Experimentelle Daten'!$AA$3))/$A$9*$A$10*F49*(60*60*24) -> 108.151 | H49: 1.1
D50: 46 | E50: 0.5 | F50: 6.0 | G50: =(EXP('Experimentelle Daten'!$Z$3/8.31446/($A$3+273.15)+'Experimentelle Daten'!$AA$3))/$A$9*$A$10*F50*(60*60*24) -> 108.150 | H50: 1.1
D51: 47 | E51: 0.5 | F51: 6.0 | G51: =(EXP('Experimentelle Daten'!$Z$3/8.31446/($A$3+273.15)+'Experimentelle Daten'!$AA$3))/$A$9*$A$10*F51*(60*60*24) -> 108.149 | H51: 1.1
D52: 48 | E52: 0.5 | F52: 6.0 | G52: =(EXP('Experimentelle Daten'!$Z$3/8.31446/($A$3+273.15)+'Experimentelle Daten'!$AA$3))/$A$9*$A$10*F52*(60*60*24) -> 108.148 | H52: 1.1
D53: 49 | E53: 0.5 | F53: 6.0 | G53: =(EXP('Experimentelle Daten'!$Z$3/8.31446/($A$3+273.15)+'Experimentelle Daten'!$AA$3))/$A$9*$A$10*F53*(60*60*24) -> 108.147 | H53: 1.1
D54: 50 | E54: 0.5 | F54: 6.0 | G54: =(EXP('Experimentelle Daten'!$Z$3/8.31446/($A$3+273.15)+'Experimentelle Daten'!$AA$3))/$A$9*$A$10*F54*(60*60*24) -> 108.146 | H54: 1.1
D55: 51 | E55: 0.5 | F55: 6.0 | G55: =(EXP('Experimentelle Daten'!$Z$3/8.31446/($A$3+273.15)+'Experimentelle Daten'!$AA$3))/$A$9*$A$10*F55*(60*60*24) -> 108.145 | H55: 1.1
D56: 52 | E56: 0.5 | F56: 6.0 | G56: =(EXP('Experimentelle Daten'!$Z$3/8.31446/($A$3+273.15)+'Experimentelle Daten'!$AA$3))/$A$9*$A$10*F56*(60*60*24) -> 108.144 | H56: 1.1
D57: 53 | E57: 0.5 | F57: 6.0 | G57: =(EXP('Experimentelle Daten'!$Z$3/8.31446/($A$3+273.15)+'Experimentelle Daten'!$AA$3))/$A$9*$A$10*F57*(60*60*24) -> 108.143 | H57: 1.1
D58: 54 | E58: 0.5 | F58: 6.0 | G58: =(EXP('Experimentelle Daten'!$Z$3/8.31446/($A$3+273.15)+'Experimentelle Daten'!$AA$3))/$A$9*$A$10*F58*(60*60*24) -> 108.142 | H58: 1.1
D59: 55 | E59: 0.6 | F59: 6.0 | G59: =(EXP('Experimentelle Daten'!$Z$3/8.31446/($A$3+273.15)+'Experimentelle Daten'!$AA$3))/$A$9*$A$10*F59*(60*60*24) -> 108.141 | H59: 1.1
D60: 56 | E60: 0.6 | F60: 6.0 | G60: =(EXP('Experimentelle Daten'!$Z$3/8.31446/($A$3+273.15)+'Experimentelle Daten'!$AA$3))/$A$9*$A$10*F60*(60*60*24) -> 108.140 | H60: 1.1
D61: 57 | E61: 0.6 | F61: 6.0 | G61: =(EXP('Experimentelle Daten'!$Z$3/8.31446/($A$3+273.15)+'Experimentelle Daten'!$AA$3))/$A$9*$A$10*F61*(60*60*24) -> 108.139 | H61: 1.1
D62: 58 | E62: 0.6 | F62: 6.0 | G62: =(EXP('Experimentelle Daten'!$Z$3/8.31446/($A$3+273.15)+'Experimentelle Daten'!$AA$3))/$A$9*$A$10*F62*(60*60*24) -> 108.138 | H62: 1.1
D63: 59 | E63: 0.6 | F63: 6.0 | G63: =(EXP('Experimentelle Daten'!$Z$3/8.31446/($A$3+273.15)+'Experimentelle Daten'!$AA$3))/$A$9*$A$10*F63*(60*60*24) -> 108.137 | H63: 1.1
D64: 60 | E64: 0.6 | F64: 6.0 | G64: =(EXP('Experimentelle Daten'!$Z$3/8.31446/($A$3+273.15)+'Experimentelle Daten'!$AA$3))/$A$9*$A$10*F64*(60*60*24) -> 108.136 | H64: 1.1
D65: 61 | E65: 0.6 | F65: 6.0 | G65: =(EXP('Experimentelle Daten'!$Z$3/8.31446/($A$3+273.15)+'Experimentelle Daten'!$AA$3))/$A$9*$A$10*F65*(60*60*24) -> 108.135 | H65: 1.1
D66: 62 | E66: 0.6 | F66: 6.0 | G66: =(EXP('Experimentelle Daten'!$Z$3/8.31446/($A$3+273.15)+'Experimentelle Daten'!$AA$3))/$A$9*$A$10*F66*(60*60*24) -> 108.135 | H66: 1.1
D67: 63 | E67: 0.6 | F67: 6.0 | G67: =(EXP('Experimentelle Daten'!$Z$3/8.31446/($A$3+273.15)+'Experimentelle Daten'!$AA$3))/$A$9*$A$10*F67*(60*60*24) -> 108.134 | H67: 1.1
D68: 64 | E68: =$A$7/100*D68 -> 0.6 | F68: 6.0 | G68: =(EXP('Experimentelle Daten'!$Z$3/8.31446/($A$3+273.15)+'Experimentelle Daten'!$AA$3))/$A$9*$A$10*F68*(60*60*24) -> 108.133 | H68: =G68*($E$5) -> 1.1
D69: 65 | E69: 0.7 | F69: =F68-(H68/$A$11) -> 6.0 | G69: =(EXP('Experimentelle Daten'!$Z$3/8.31446/($A$3+273.15)+'Experimentelle Daten'!$AA$3))/$A$9*$A$10*F69*(60*60*24) -> 108.132 | H69: =G69*($E$5) -> 1.1
D70: 66 | E70: 0.7 | F70: 6.0 | G70: =(EXP('Experimentelle Daten'!$Z$3/8.31446/($A$3+273.15)+'Experimentelle Daten'!$AA$3))/$A$9*$A$10*F70*(60*60*24) -> 108.131 | H70: 1.1
D71: 67 | E71: 0.7 | F71: 6.0 | G71: =(EXP('Experimentelle Daten'!$Z$3/8.31446/($A$3+273.15)+'Experimentelle Daten'!$AA$3))/$A$9*$A$10*F71*(60*60*24) -> 108.130 | H71: 1.1
D72: 68 | E72: 0.7 | F72: 6.0 | G72: =(EXP('Experimentelle Daten'!$Z$3/8.31446/($A$3+273.15)+'Experimentelle Daten'!$AA$3))/$A$9*$A$10*F72*(60*60*24) -> 108.129 | H72: 1.1
D73: 69 | E73: 0.7 | F73: 6.0 | G73: =(EXP('Experimentelle Daten'!$Z$3/8.31446/($A$3+273.15)+'Experimentelle Daten'!$AA$3))/$A$9*$A$10*F73*(60*60*24) -> 108.128 | H73: 1.1
D74: 70 | E74: 0.7 | F74: 6.0 | G74: =(EXP('Experimentelle Daten'!$Z$3/8.31446/($A$3+273.15)+'Experimentelle Daten'!$AA$3))/$A$9*$A$10*F74*(60*60*24) -> 108.127 | H74: 1.1
D75: 71 | E75: 0.7 | F75: 6.0 | G75: =(EXP('Experimentelle Daten'!$Z$3/8.31446/($A$3+273.15)+'Experimentelle Daten'!$AA$3))/$A$9*$A$10*F75*(60*60*24) -> 108.126 | H75: 1.1
D76: 72 | E76: 0.7 | F76: 6.0 | G76: =(EXP('Experimentelle Daten'!$Z$3/8.31446/($A$3+273.15)+'Experimentelle Daten'!$AA$3))/$A$9*$A$10*F76*(60*60*24) -> 108.125 | H76: 1.1
D77: 73 | E77: 0.7 | F77: 6.0 | G77: =(EXP('Experimentelle Daten'!$Z$3/8.31446/($A$3+273.15)+'Experimentelle Daten'!$AA$3))/$A$9*$A$10*F77*(60*60*24) -> 108.124 | H77: 1.1
D78: 74 | E78: 0.7 | F78: 6.0 | G78: =(EXP('Experimentelle Daten'!$Z$3/8.31446/($A$3+273.15)+'Experimentelle Daten'!$AA$3))/$A$9*$A$10*F78*(60*60*24) -> 108.123 | H78: 1.1
D79: 75 | E79: 0.8 | F79: 6.0 | G79: =(EXP('Experimentelle Daten'!$Z$3/8.31446/($A$3+273.15)+'Experimentelle Daten'!$AA$3))/$A$9*$A$10*F79*(60*60*24) -> 108.122 | H79: 1.1
D80: 76 | E80: 0.8 | F80: 6.0 | G80: =(EXP('Experimentelle Daten'!$Z$3/8.31446/($A$3+273.15)+'Experimentelle Daten'!$AA$3))/$A$9*$A$10*F80*(60*60*24) -> 108.121 | H80: 1.1
D81: 77 | E81: 0.8 | F81: 6.0 | G81: =(EXP('Experimentelle Daten'!$Z$3/8.31446/($A$3+273.15)+'Experimentelle Daten'!$AA$3))/$A$9*$A$10*F81*(60*60*24) -> 108.120 | H81: 1.1
D82: 78 | E82: 0.8 | F82: 6.0 | G82: =(EXP('Experimentelle Daten'!$Z$3/8.31446/($A$3+273.15)+'Experimentelle Daten'!$AA$3))/$A$9*$A$10*F82*(60*60*24) -> 108.120 | H82: 1.1
D83: 79 | E83: 0.8 | F83: 6.0 | G83: =(EXP('Experimentelle Daten'!$Z$3/8.31446/($A$3+273.15)+'Experimentelle Daten'!$AA$3))/$A$9*$A$10*F83*(60*60*24) -> 108.119 | H83: 1.1
D84: 80 | E84: 0.8 | F84: 6.0 | G84: =(EXP('Experimentelle Daten'!$Z$3/8.31446/($A$3+273.15)+'Experimentelle Daten'!$AA$3))/$A$9*$A$10*F84*(60*60*24) -> 108.118 | H84: 1.1
D85: 81 | E85: 0.8 | F85: 6.0 | G85: =(EXP('Experimentelle Daten'!$Z$3/8.31446/($A$3+273.15)+'Experimentelle Daten'!$AA$3))/$A$9*$A$10*F85*(60*60*24) -> 108.117 | H85: 1.1
D86: 82 | E86: 0.8 | F86: 6.0 | G86: =(EXP('Experimentelle Daten'!$Z$3/8.31446/($A$3+273.15)+'Experimentelle Daten'!$AA$3))/$A$9*$A$10*F86*(60*60*24) -> 108.116 | H86: 1.1
D87: 83 | E87: 0.8 | F87: 6.0 | G87: =(EXP('Experimentelle Daten'!$Z$3/8.31446/($A$3+273.15)+'Experimentelle Daten'!$AA$3))/$A$9*$A$10*F87*(60*60*24) -> 108.115 | H87: 1.1
D88: 84 | E88: 0.8 | F88: 6.0 | G88: =(EXP('Experimentelle Daten'!$Z$3/8.31446/($A$3+273.15)+'Experimentelle Daten'!$AA$3))/$A$9*$A$10*F88*(60*60*24) -> 108.114 | H88: 1.1
D89: 85 | E89: 0.9 | F89: 6.0 | G89: =(EXP('Experimentelle Daten'!$Z$3/8.31446/($A$3+273.15)+'Experimentelle Daten'!$AA$3))/$A$9*$A$10*F89*(60*60*24) -> 108.113 | H89: 1.1
D90: 86 | E90: 0.9 | F90: 6.0 | G90: =(EXP('Experimentelle Daten'!$Z$3/8.31446/($A$3+273.15)+'Experimentelle Daten'!$AA$3))/$A$9*$A$10*F90*(60*60*24) -> 108.112 | H90: 1.1
D91: 87 | E91: 0.9 | F91: 6.0 | G91: =(EXP('Experimentelle Daten'!$Z$3/8.31446/($A$3+273.15)+'Experimentelle Daten'!$AA$3))/$A$9*$A$10*F91*(60*60*24) -> 108.111 | H91: 1.1
D92: 88 | E92: 0.9 | F92: 6.0 | G92: =(EXP('Experimentelle Daten'!$Z$3/8.31446/($A$3+273.15)+'Experimentelle Daten'!$AA$3))/$A$9*$A$10*F92*(60*60*24) -> 108.110 | H92: 1.1
D93: 89 | E93: 0.9 | F93: 6.0 | G93: =(EXP('Experimentelle Daten'!$Z$3/8.31446/($A$3+273.15)+'Experimentelle Daten'!$AA$3))/$A$9*$A$10*F93*(60*60*24) -> 108.109 | H93: 1.1
D94: 90 | E94: 0.9 | F94: 6.0 | G94: =(EXP('Experimentelle Daten'!$Z$3/8.31446/($A$3+273.15)+'Experimentelle Daten'!$AA$3))/$A$9*$A$10*F94*(60*60*24) -> 108.108 | H94: 1.1
D95: 91 | E95: 0.9 | F95: 6.0 | G95: =(EXP('Experimentelle Daten'!$Z$3/8.31446/($A$3+273.15)+'Experimentelle Daten'!$AA$3))/$A$9*$A$10*F95*(60*60*24) -> 108.107 | H95: 1.1
D96: 92 | E96: 0.9 | F96: 6.0 | G96: =(EXP('Experimentelle Daten'!$Z$3/8.31446/($A$3+273.15)+'Experimentelle Daten'!$AA$3))/$A$9*$A$10*F96*(60*60*24) -> 108.106 | H96: 1.1
D97: 93 | E97: 0.9 | F97: 6.0 | G97: =(EXP('Experimentelle Daten'!$Z$3/8.31446/($A$3+273.15)+'Experimentelle Daten'!$AA$3))/$A$9*$A$10*F97*(60*60*24) -> 108.105 | H97: 1.1
D98: 94 | E98: 0.9 | F98: 6.0 | G98: =(EXP('Experimentelle Daten'!$Z$3/8.31446/($A$3+273.15)+'Experimentelle Daten'!$AA$3))/$A$9*$A$10*F98*(60*60*24) -> 108.104 | H98: 1.1
D99: 95 | E99: 1.0 | F99: 6.0 | G99: =(EXP('Experimentelle Daten'!$Z$3/8.31446/($A$3+273.15)+'Experimentelle Daten'!$AA$3))/$A$9*$A$10*F99*(60*60*24) -> 108.104 | H99: 1.1
D100: 96 | E100: =$A$7/100*D100 -> 1.0 | F100: 6.0 | G100: =(EXP('Experimentelle Daten'!$Z$3/8.31446/($A$3+273.15)+'Experimentelle Daten'!$AA$3))/$A$9*$A$10*F100*(60*60*24) -> 108.103 | H100: 1.1
D101: 97 | E101: 1.0 | F101: 6.0 | G101: =(EXP('Experimentelle Daten'!$Z$3/8.31446/($A$3+273.15)+'Experimentelle Daten'!$AA$3))/$A$9*$A$10*F101*(60*60*24) -> 108.102 | H101: 1.1
D102: 98 | E102: 1.0 | F102: 6.0 | G102: =(EXP('Experimentelle Daten'!$Z$3/8.31446/($A$3+273.15)+'Experimentelle Daten'!$AA$3))/$A$9*$A$10*F102*(60*60*24) -> 108.101 | H102: 1.1
D103: 99 | E103: 1.0 | F103: 6.0 | G103: =(EXP('Experimentelle Daten'!$Z$3/8.31446/($A$3+273.15)+'Experimentelle Daten'!$AA$3))/$A$9*$A$10*F103*(60*60*24) -> 108.100 | H103: 1.1
D104: 100 | E104: 1.0 | F104: 6.0 | G104: =(EXP('Experimentelle Daten'!$Z$3/8.31446/($A$3+273.15)+'Experimentelle Daten'!$AA$3))/$A$9*$A$10*F104*(60*60*24) -> 108.099 | H104: 1.1

Sheet Experimentelle Daten (hidden)
A2: Messungen durchgeführt an RAUPEX-A-Rohr 20x1,9 | B2: Länge / mm | C2: Da / mm | D2: Wand / mm | E2: P-Fläche / m2 | F2: T / °C | G2: V / cm3 | H2: p(Ar) / bar | I2: P / bar Std-1 | J2: P / mbar s-1 | K2: P / mbar L s-1 = cm3 s-1 | L2: P / cm3 s-1 bar-1 | M2: Bezeichnung | N2: P / cm3 s-1 bar-1 | Q2: P(net) / cm3 s-1 bar-1 | R2: T / K | S2: P(net) / cm3 mm s-1 m-2 bar-1 | T2: T-1 / K-1 | U2: ln(P) | W2: Test / cm3 mm s-1 m-2 bar-1 | X2: Abweichung / % | Z2: EA / J mol-1 | AA2: ln(P0)
A3: Rohr Lang | B3: 402.5 | C3: 20 | D3: 1.9 | E3: =((C3-(2*D3))*PI()*B3)/1000/1000 -> 2.05E-02 | F3: 23 | G3: 89.4 | H3: 9.7 | I3: -4.1E-03 | J3: =I3*1000/60/60 -> -1.1E-03 | K3: =J3*(G3/1000) -> -1.0E-04 | L3: =K3/H3 -> -1.0E-05 | M3: =A3&" - "&F3&" °C" -> Rohr Lang - 23 °C | N3: =ABS(L3) -> 1.0E-05 | O3: okay | Q3: =N3-VLOOKUP(F3,$F$15:$N$16,9,TRUE) -> 1.0E-05 | R3: =F3+273.15 -> 296.15 | S3: =Q3/E3*D3 -> 9.73E-04 | T3: =1/R3 -> 3.4E-03 | U3: =LN(S3) -> -6.94 | W3: =EXP($Z$3/8.31446/(F3+273.15)+$AA$3) -> 8.78E-04 | X3: =(ABS(W3-S3)/S3)*100 -> 10 | Z3: =SLOPE(U3:U13,T3:T13)*8.31446 -> -37934 | AA3: =(INTERCEPT(U3:U13,T3:T13)) -> 8.4
A4: Rohr Lang | B4: 402.5 | C4: 20 | D4: 1.9 | E4: =((C4-(2*D4))*PI()*B4)/1000/1000 -> 2.05E-02 | F4: 23 | G4: 89.4 | H4: 9.3 | I4: -3.5E-03 | J4: =I4*1000/60/60 -> -9.8E-04 | K4: =J4*(G4/1000) -> -8.7E-05 | L4: =K4/H4 -> -9.4E-06 | M4: =A4&" - "&F4&" °C" -> Rohr Lang - 23 °C | N4: =ABS(L4) -> 9.4E-06 | O4: okay | Q4: =N4-VLOOKUP(F4,$F$15:$N$16,9,TRUE) -> 9.4E-06 | R4: =F4+273.15 -> 296.15 | S4: =Q4/E4*D4 -> 8.73E-04 | T4: =1/R4 -> 3.4E-03 | U4: =LN(S4) -> -7.04 | W4: =EXP($Z$3/8.31446/(F4+273.15)+$AA$3) -> 8.78E-04 | X4: =(ABS(W4-S4)/S4)*100 -> 1
A5: Rohr Lang | B5: 402.5 | C5: 20 | D5: 1.9 | E5: =((C5-(2*D5))*PI()*B5)/1000/1000 -> 2.05E-02 | F5: 35 | G5: 89.4 | H5: 9.9 | I5: -7.2E-03 | J5: =I5*1000/60/60 -> -2.0E-03 | K5: =J5*(G5/1000) -> -1.8E-04 | L5: =K5/H5 -> -1.8E-05 | M5: =A5&" - "&F5&" °C" -> Rohr Lang - 35 °C | N5: =ABS(L5) -> 1.8E-05 | O5: okay | Q5: =N5-VLOOKUP(F5,$F$15:$N$16,9,TRUE) -> 1.8E-05 | R5: =F5+273.15 -> 308.15 | S5: =Q5/E5*D5 -> 1.67E-03 | T5: =1/R5 -> 3.2E-03 | U5: =LN(S5) -> -6.39 | W5: =EXP($Z$3/8.31446/(F5+273.15)+$AA$3) -> 1.60E-03 | X5: 4
A7: Rohr Mittel | B7: 204 | C7: 20 | D7: 1.9 | E7: =((C7-(2*D7))*PI()*B7)/1000/1000 -> 1.04E-02 | F7: 23 | G7: 50.5 | H7: 8.9 | I7: -2.7E-03 | J7: =I7*1000/60/60 -> -7.6E-04 | K7: =J7*(G7/1000) -> -3.8E-05 | L7: =K7/H7 -> -4.3E-06 | M7: =A7&" - "&F7&" °C" -> Rohr Mittel - 23 °C | N7: =ABS(L7) -> 4.3E-06 | O7: okay | Q7: =N7-VLOOKUP(F7,$F$15:$N$16,9,TRUE) -> 4.3E-06 | R7: =F7+273.15 -> 296.15 | S7: =Q7/E7*D7 -> 7.84E-04 | T7: =1/R7 -> 3.4E-03 | U7: =LN(S7) -> -7.15 | W7: =EXP($Z$3/8.31446/(F7+273.15)+$AA$3) -> 8.78E-04 | X7: 12
A8: Rohr Mittel | B8: 204 | C8: 20 | D8: 1.9 | E8: =((C8-(2*D8))*PI()*B8)/1000/1000 -> 1.04E-02 | F8: 23 | G8: 50.5 | H8: 9.1 | I8: -3.0E-03 | J8: =I8*1000/60/60 -> -8.2E-04 | K8: =J8*(G8/1000) -> -4.2E-05 | L8: =K8/H8 -> -4.6E-06 | M8: =A8&" - "&F8&" °C" -> Rohr Mittel - 23 °C | N8: =ABS(L8) -> 4.6E-06 | O8: okay | Q8: =N8-VLOOKUP(F8,$F$15:$N$16,9,TRUE) -> 4.6E-06 | R8: =F8+273.15 -> 296.15 | S8: =Q8/E8*D8 -> 8.37E-04 | T8: =1/R8 -> 3.4E-03 | U8: =LN(S8) -> -7.09 | W8: =EXP($Z$3/8.31446/(F8+273.15)+$AA$3) -> 8.78E-04 | X8: 5
A9: Rohr Mittel | B9: 204 | C9: 20 | D9: 1.9 | E9: =((C9-(2*D9))*PI()*B9)/1000/1000 -> 1.04E-02 | F9: 35 | G9: 50.5 | H9: 9.5 | I9: -5.7E-03 | J9: =I9*1000/60/60 -> -1.6E-03 | K9: =J9*(G9/1000) -> -8.0E-05 | L9: =K9/H9 -> -8.4E-06 | M9: =A9&" - "&F9&" °C" -> Rohr Mittel - 35 °C | N9: =ABS(L9) -> 8.4E-06 | O9: okay | Q9: =N9-VLOOKUP(F9,$F$15:$N$16,9,TRUE) -> 8.4E-06 | R9: =F9+273.15 -> 308.15 | S9: =Q9/E9*D9 -> 1.53E-03 | T9: =1/R9 -> 3.2E-03 | U9: =LN(S9) -> -6.48 | W9: =EXP($Z$3/8.31446/(F9+273.15)+$AA$3) -> 1.60E-03 | X9: 4
A10: Rohr Mittel | B10: 204 | C10: 20 | D10: 1.9 | E10: =((C10-(2*D10))*PI()*B10)/1000/1000 -> 1.04E-02 | F10: 35 | G10: 50.5 | H10: 9.7 | I10: -5.4E-03 | J10: =I10*1000/60/60 -> -1.5E-03 | K10: =J10*(G10/1000) -> -7.6E-05 | L10: =K10/H10 -> -7.9E-06 | M10: =A10&" - "&F10&" °C" -> Rohr Mittel - 35 °C | N10: =ABS(L10) -> 7.9E-06 | O10: okay | Q10: =N10-VLOOKUP(F10,$F$15:$N$16,9,TRUE) -> 7.8E-06 | R10: =F10+273.15 -> 308.15 | S10: =Q10/E10*D10 -> 1.43E-03 | T10: =1/R10 -> 3.2E-03 | U10: =LN(S10) -> -6.55 | W10: =EXP($Z$3/8.31446/(F10+273.15)+$AA$3) -> 1.60E-03 | X10: 12
A12: Rohr Kurz | B12: 29.5 | C12: 20 | D12: 1.9 | E12: =((C12-(2*D12))*PI()*B12)/1000/1000 -> 1.50E-03 | F12: 23 | G12: 17.9 | H12: 9.4 | I12: -1.4E-03 | J12: =I12*1000/60/60 -> -3.9E-04 | K12: =J12*(G12/1000) -> -7.0E-06 | L12: =K12/H12 -> -7.5E-07 | M12: =A12&" - "&F12&" °C" -> Rohr Kurz - 23 °C | N12: =ABS(L12) -> 7.5E-07 | O12: okay | Q12: =N12-VLOOKUP(F12,$F$15:$N$16,9,TRUE) -> 7.4E-07 | R12: =F12+273.15 -> 296.15 | S12: =Q12/E12*D12 -> 9.34E-04 | T12: =1/R12 -> 3.4E-03 | U12: =LN(S12) -> -6.98 | W12: =EXP($Z$3/8.31446/(F12+273.15)+$AA$3) -> 8.78E-04 | X12: 6
A13: Rohr Kurz | B13: 29.5 | C13: 20 | D13: 1.9 | E13: =((C13-(2*D13))*PI()*B13)/1000/1000 -> 1.50E-03 | F13: 35 | G13: 17.9 | H13: 9.8 | I13: -2.8E-03 | J13: =I13*1000/60/60 -> -7.8E-04 | K13: =J13*(G13/1000) -> -1.4E-05 | L13: =K13/H13 -> -1.4E-06 | M13: =A13&" - "&F13&" °C" -> Rohr Kurz - 35 °C | N13: =ABS(L13) -> 1.4E-06 | O13: okay | Q13: =N13-VLOOKUP(F13,$F$15:$N$16,9,TRUE) -> 1.4E-06 | R13: =F13+273.15 -> 308.15 | S13: =Q13/E13*D13 -> 1.78E-03 | T13: =1/R13 -> 3.2E-03 | U13: =LN(S13) -> -6.33 | W13: =EXP($Z$3/8.31446/(F13+273.15)+$AA$3) -> 1.60E-03 | X13: 10
A15: Metall Blind | B15: - | F15: 23 | G15: 4.1 | H15: 9.7 | I15: -6.6E-05 | J15: =I15*1000/60/60 -> -1.8E-05 | K15: =J15*(G15/1000) -> -7.5E-08 | L15: =K15/H15 -> -7.7E-09 | M15: =A15&" - "&F15&" °C" -> Metall Blind - 23 °C | N15: =ABS(L15) -> 7.7E-09 | O15: okay
A16: Metall Blind | B16: - | F16: 35 | G16: 4.1 | H16: 10.1 | I16: -1.8E-04 | J16: =I16*1000/60/60 -> -4.9E-05 | K16: =J16*(G16/1000) -> -2.0E-07 | L16: =K16/H16 -> -2.0E-08 | M16: =A16&" - "&F16&" °C" -> Metall Blind - 35 °C | N16: =ABS(L16) -> 2.0E-08 | O16: okay
A18: Balkengrafik / Ergebnis-Zusammenfassung | Q18: P-Rate in Abhängigkeit Rohrlänge (23 °C / 35 °C) | Y18: Arrehnius Plot
